[Event "Kvika Banki League Iceland 2022-23"]
[Site "Reykjavik"]
[Date "2022.10.16"]
[Round "5.14"]
[White "Halldorsson, Jon Arni"]
[Black "Einarsson, Halldor Gretar"]
[Result "0-1"]
[ECO "D03"]
[WhiteElo "2057"]
[BlackElo "2226"]
[Annotator "TA"]
[PlyCount "80"]
[EventDate "2022.10.13"]
[EventType "team-tourn"]
[EventCountry "ISL"]
[SourceTitle "playchess.com"]
[Source "ChessBase"]
[SourceQuality "1"]
[TimeControl "5400+30"]

{[%evp 10,80,-2,0,3,0,0,0,6,-63,8,-47,25,-66,0,-13,0,-94,-78,-84,-83,-90,-87,-106,-111,-107,-14,-152,-150,-152,-147,-143,-147,-156,-45,-60,-63,-254,-245,-250,-243,-224,-233,-229,-212,-432,-427,-366,-305,-244,0,-339,-339,-332,-332,-322,-49,-54,0,-322,-306,-286,-279,-1103,-1101,-1038,-1008,-1260,-1222,-29997,-29998,-29998,-29999]} 1. d4 {[%emt 0:00:04]} Nf6 {[%emt 0:00:23]} 2. Nf3 {[%emt 0:00:11]} g6 {[%emt 0:00:29]} 3. Bg5 {[%emt 0:00:58]} Bg7 {[%emt 0:00:08]} 4. Nbd2 {[%emt 0:00:07]} d5 {[%emt 0:00:38]} 5. e3 {[%emt 0:00:15]} O-O {[%emt 0:00:25]} 6. b4 {[%emt 0:01:56]} a5 {[%emt 0:02:44] D03: 1 d4 d5 2 Nf3 Nf6 3 Bg5, including Torre Attack with early ...d5.} 7. b5 {[%emt 0:00:10]} c5 {[%emt 0:02:01]} 8. bxc6 {[%emt 0:00:12]} Nxc6 {[%emt 0:00:30] The position is equal.} 9. Be2 {[%emt 0:01:02] [#]} (9. Bd3 $11) 9... h6 $146 {[%emt 0:06:43]} (9... Ne4 $1 $15 10. Nxe4 dxe4) ({Predecessor:} 9... Ne4 10. Nxe4 dxe4 11. Nd2 h6 12. Bh4 g5 13. Bg3 f5 14. Bc4+ e6 15. h4 f4 16. hxg5 fxg3 17. gxh6 gxf2+ {0-1 (68) Nitish,B (1857)-Praneeth,S (2201) Nagpur 2012}) 10. Bh4 {[%emt 0:00:51]} (10. Bxf6 $11 Bxf6 11. c4) 10... Bf5 {[%emt 0:00:24]} ({Better is} 10... Ne4 $15 11. Qb1 a4) 11. a3 {[%emt 0:04:27]} (11. O-O $11) 11... g5 {[%emt 0:02:06] Black is more active.} (11... Ne4 $1 $15) 12. Bg3 $11 {[%emt 0:00:08]} Nh5 $36 {[%emt 0:03:02][%mdl 2048] Black fights for an advantage.} 13. Ne5 {[%emt 0:04:27]} (13. Rc1 $11 {remains equal.}) 13... Nxg3 $17 {[%emt 0:01:01]} 14. Nxc6 {[%emt 0:00:11]} bxc6 {[%emt 0:00:46]} 15. hxg3 {[%emt 0:00:06]} a4 {[%emt 0:06:38]} 16. Bd3 {[%emt 0:13:28]} Bxd3 {[%emt 0:06:02]} 17. cxd3 {[%emt 0:00:59]} c5 {[%emt 0:01:51]} (17... Qd6 $1 $17) 18. Nf3 {[%emt 0:08:46]} (18. dxc5 $11 Bxa1 19. Qxa1) 18... cxd4 {[%emt 0:11:04]} 19. Nxd4 {[%emt 0:05:02]} Bxd4 {[%emt 0:00:07]} 20. exd4 {[%emt 0:00:04]} Qb6 {[%emt 0:00:56]} 21. Rb1 {[%emt 0:11:34]} Qxd4 {[%emt 0:00:34]} (21... Qd6 $1 $17 {Strongly threatening ...Rfb8.} 22. Qh5 Ra6) 22. Rxh6 $15 {[%emt 0:00:13]} Rab8 {[%emt 0:01:03] aiming for ...Rfc8.} 23. Ra6 $2 {[%emt 0:23:17]} ({White must play} 23. Rh5 $1 $15 f6 24. Kf1) 23... Rxb1 $19 {[%emt 0:06:26]} 24. Qxb1 {[%emt 0:00:08][%mdl 4096] Endgame [#] KQR-KQR} Rc8 $1 {[%emt 0:00:12]} 25. Rb6 {[%emt 0:10:40]} Qc3+ {[%emt 0:05:56]} 26. Ke2 {[%emt 0:02:38]} Qxa3 {[%emt 0:00:12]} 27. Rb8 $2 {[%emt 0:00:35]} (27. Qb2 {keeps fighting.} Qxb2+ 28. Rxb2) 27... Rxb8 {[%emt 0:13:46]} 28. Qxb8+ {[%emt 0:00:07] KQ-KQ} Kh7 {[%emt 0:00:07]} 29. Qe5 {[%emt 0:00:38]} Qd6 $2 {[%emt 0:11:59]} (29... Qa2+ $19 30. Ke1 Qb1+ 31. Kd2 Qb4+ 32. Qc3 Qb6) 30. Qxg5 $2 {[%emt 0:04:01][%mdl 8192]} (30. Qxd6 $1 $11 {and White has nothing to worry.} exd6 31. Kd2) 30... a3 {[%emt 0:00:35] White must now prevent ...Qe6+.} 31. Qh5+ {[%emt 0:01:20] [#]} Kg7 $1 {[%emt 0:01:04]} 32. Qg4+ {[%emt 0:00:20]} Qg6 $2 {[%emt 0:00:11]} ({Black should try} 32... Kf6 $19 {...Qe6+ is the strong threat.} 33. Qf3+ Ke6 34. Qg4+ f5 35. Qg8+ Kd7) 33. Qa4 $15 {[%emt 0:00:23]} (33. Qd4+ Qf6 34. Qg4+ (34. Qxd5 $2 Qe6+ 35. Qe4 a2 $19) 34... Kh7 35. Qh3+ (35. Qh5+ Kg8 $19) 35... Qh6 36. Qf5+ Qg6 37. Qh3+ (37. Qxd5 $2 Qe6+ 38. Qxe6 fxe6 $19) 37... Qh6 38. Qf5+ Qg6 39. Qh3+ (39. Qxd5 $2 Qe6+ 40. Qxe6 fxe6 $19) 39... Qh6 $19) 33... Qd6 $2 {[%emt 0:03:40][%mdl 8192]} (33... Qe6+ $15 34. Kd1 Qd6) 34. Qg4+ $1 $19 {[%emt 0:00:07]} Kf6 {[%emt 0:01:31] Threatens to win with ...Qe6+.} 35. Qh4+ {[%emt 0:00:56]} Ke6 {[%emt 0:00:07]} 36. Qa4 $2 {[%emt 0:00:04]} (36. Qg4+ f5 37. Qg8+ Kd7 38. Qa8) 36... Qe5+ {[%emt 0:00:43]} 37. Kf3 {[%emt 0:00:20]} Qc3 {[%emt 0:02:42]} 38. Qa6+ {[%emt 0:04:34]} Ke5 {[%emt 0:00:59]} 39. Ke3 {[%emt 0:00:55]} Qe1+ {[%emt 0:00:19]} 40. Kf3 {[%emt 0:00:07]} Qd1+ {[%emt 0:00:11] Weighted Error Value: White=0.77/Black=0.36} 0-1

[Event "Kvika Banki League Iceland 2022-23"]
[Site "Reykjavik"]
[Date "2022.10.16"]
[Round "5.15"]
[White "Hreinsson, Hlidar"]
[Black "Finnsson, Johann Arnar"]
[Result "1-0"]
[ECO "C55"]
[WhiteElo "2170"]
[BlackElo "1891"]
[Annotator "TA"]
[PlyCount "85"]
[EventDate "2022.10.13"]
[EventType "team-tourn"]
[EventCountry "ISL"]
[SourceTitle "playchess.com"]
[Source "ChessBase"]
[SourceQuality "1"]
[TimeControl "5400+30"]

{[%evp 18,85,17,8,20,4,29,11,36,40,62,50,76,82,250,232,223,213,775,750,718,582,575,574,591,572,1021,1032,949,731,1010,466,704,481,473,479,462,423,625,628,629,622,731,716,767,762,741,735,795,795,956,949,956,925,845,833,5243,5243,29984,29985,29988,29986,29986,29986,29986,29987,29989,29990,29991,29992]} 1. e4 {[%emt 0:00:07]} e5 {[%emt 0:00:08]} 2. Nf3 {[%emt 0:00:06]} Nc6 {[%emt 0:00:04]} 3. Bc4 {[%emt 0:00:09]} Nf6 {[%emt 0:00:07]} 4. d3 {[%emt 0:00:05]} Be7 {[%emt 0:00:09]} 5. O-O {[%emt 0:00:23]} d6 {[%emt 0:00:17]} 6. h3 {[%emt 0:00:57]} O-O {[%emt 0:00:18]} 7. c3 {[%emt 0:01:45]} Na5 {[%emt 0:01:19]} 8. Bb5 {[%emt 0:00:38]} a6 {[%emt 0:00:08]} 9. Ba4 {[%emt 0:00:05]} b5 {[%emt 0:00:06]} 10. Bc2 {[%emt 0:00:05]} c5 {[%emt 0:00:10] C55: Two Knights: 4 d3, 4 d4 exd4 5 e5 and Max Lange Attack.} 11. d4 {[%emt 0:02:51]} cxd4 {[%emt 0:01:09]} 12. cxd4 {[%emt 0:02:15]} Nc6 {[%emt 0:00:23] The position is equal.} 13. Nc3 {[%emt 0:06:37]} h6 {[%emt 0:06:02]} 14. Be3 {[%emt 0:04:04] [#]} Qc7 $146 {[%emt 0:06:44]} ({Predecessor:} 14... Re8 15. Rc1 Bf8 16. Bb1 Bb7 17. d5 Ne7 18. b4 Bc8 19. Nd2 Nh7 20. a4 Bd7 21. axb5 axb5 {1-0 (40) Ugroczky,P (2197)-Tancsa,T (1924) Zalakaros 2018}) 15. Rc1 {[%emt 0:03:05]} Rd8 $2 {[%emt 0:07:12] [#]} (15... Qb7 $16 {keeps fighting.}) 16. Nd5 $1 $18 {[%emt 0:03:59]} Qb7 {[%emt 0:06:34]} (16... Nxd5 $2 17. exd5 f5 18. Bb3 $18) 17. Bb3 {[%emt 0:07:34]} Bf8 $2 {[%emt 0:16:06]} (17... Bd7 18. dxe5 dxe5 19. Nxe5 Nxe5) 18. Nxf6+ {[%emt 0:06:21]} gxf6 {[%emt 0:00:34] [#]} 19. Rxc6 $1 {[%emt 0:01:05][%mdl 512]} Qxc6 {[%emt 0:01:02]} 20. Bd5 {[%emt 0:00:05][%mdl 64] Skewer, Deflection} Qe8 {[%emt 0:01:28]} 21. Bxa8 {[%emt 0:00:26]} Bxh3 {[%emt 0:00:16]} 22. gxh3 {[%emt 0:01:19]} Rxa8 {[%emt 0:00:10]} 23. d5 {[%emt 0:00:39]} Qd7 {[%emt 0:00:28]} 24. Nh2 {[%emt 0:01:35]} (24. Kh2 $142 f5 25. Rg1+ Kh8 26. Nh4) 24... f5 {[%emt 0:02:29]} (24... Qxh3 $142 25. Qg4+ Qxg4+ 26. Nxg4 Kh7 27. Nxf6+ Kg6) 25. exf5 {[%emt 0:02:44]} Qxf5 {[%emt 0:00:07]} 26. Qg4+ {[%emt 0:00:17]} Qxg4+ {[%emt 0:00:06]} 27. Nxg4 {[%emt 0:00:33]} f5 {[%emt 0:00:08]} (27... Kh7 $142 28. Rc1 f5 29. Nf6+ Kg6) 28. Nxh6+ {[%emt 0:00:46]} Bxh6 {[%emt 0:00:08]} 29. Bxh6 {[%emt 0:00:03][%mdl 4096] Endgame KRB-KR} f4 {[%emt 0:00:10]} 30. Rc1 {[%emt 0:00:14] Inhibits Rc8.} Kh7 {[%emt 0:00:27]} 31. Bg5 {[%emt 0:00:05]} Kg6 {[%emt 0:00:48]} 32. h4 {[%emt 0:00:06]} Kf5 {[%emt 0:00:38]} 33. Rc6 {[%emt 0:00:53]} Ke4 {[%emt 0:01:38]} 34. Rxd6 {[%emt 0:00:41]} Rf8 {[%emt 0:00:51]} 35. Rd8 {[%emt 0:01:39]} Rf7 {[%emt 0:00:14]} 36. d6 {[%emt 0:00:04]} Kf3 {[%emt 0:00:11]} 37. Rc8 {[%emt 0:00:14] Rc7 would kill now.} e4 {[%emt 0:01:42]} 38. Rc7 {[%emt 0:01:14] White mates.} Rf8 {[%emt 0:00:33]} 39. d7 {[%emt 0:00:18]} e3 {[%emt 0:00:06]} 40. d8=Q {[%emt 0:00:21]} Rxd8 {[%emt 0:00:11]} 41. Bxd8 {[%emt 0:00:08]} e2 {[%emt 0:00:11]} 42. Re7 {[%emt 0:00:43]} b4 {[%emt 0:00:24]} 43. h5 {[%emt 0:00:19] Black got outplayed after the opening.  Weighted Error Value: White=0.49/Black=0.46} 1-0

[Event "Kvika Banki League Iceland 2022-23"]
[Site "Reykjavik"]
[Date "2022.10.16"]
[Round "5.16"]
[White "Fridgeirsson, Dagur Andri"]
[Black "Ornolfsson, Magnus P."]
[Result "0-1"]
[ECO "E11"]
[WhiteElo "1943"]
[BlackElo "2154"]
[Annotator "TA"]
[PlyCount "92"]
[EventDate "2022.10.13"]
[EventType "team-tourn"]
[EventCountry "ISL"]
[SourceTitle "playchess.com"]
[Source "ChessBase"]
[SourceQuality "1"]
[TimeControl "5400+30"]

{[%evp 10,92,10,10,44,0,0,-7,4,-2,9,-20,-5,-13,-20,-27,-14,-7,0,-13,-13,-21,-15,-28,-30,-30,-22,-23,-22,-18,-4,-18,28,0,0,0,8,0,0,0,0,0,0,0,0,-90,-95,-95,-83,-79,-18,-16,-31,-233,-231,-219,-220,-512,-508,-1121,-1060,-1118,-1102,-1051,-955,-1477,-1394,-2083,-2010,-3033,-3031,-29976,-29977,-29977,-29980,-29980,-29979,-29985,-29986,-29986,-29987,-29987,-29988,-29989,-29990]} 1. d4 {[%emt 0:04:39]} Nf6 {[%emt 0:00:05]} 2. c4 {[%emt 0:00:17]} e6 {[%emt 0:00:06][%cal Be7e6,Be6e5][%mdl 32]} 3. Nf3 {[%emt 0:00:22]} Bb4+ {[%emt 0:00:15]} 4. Bd2 {[%emt 0:01:26]} Qe7 {[%emt 0:00:23]} 5. Nc3 {[%emt 0:01:07]} O-O {[%emt 0:00:29]} 6. Qc2 {[%emt 0:01:21]} d6 {[%emt 0:00:45] E11: Bogo-Indian.} 7. e4 {[%emt 0:02:42]} (7. a3 $14 Bxc3 8. Bxc3) 7... e5 $1 $11 {[%emt 0:02:03]} 8. d5 {[%emt 0:03:52]} a5 {[%emt 0:02:11] The position is equal.} 9. Be2 {[%emt 0:01:46] [#]} Bg4 $146 {[%emt 0:02:40]} ({Predecessor:} 9... Na6 10. a3 Bxc3 11. Bxc3 Nc5 12. Nd2 a4 13. O-O Ne8 14. f4 exf4 15. Rxf4 f5 {0-1 (26) Krotofil,K (1951)-Lindner,J (2159) Bad Sooden-Allendorf 2013}) 10. O-O {[%emt 0:05:44]} Nbd7 {[%emt 0:02:21]} 11. Bg5 {[%emt 0:06:39]} Bxc3 {[%emt 0:04:11]} 12. bxc3 {[%emt 0:01:15]} h6 {[%emt 0:07:46]} 13. Be3 {[%emt 0:03:40]} b6 {[%emt 0:02:40]} 14. Rae1 {[%emt 0:09:18]} Nc5 {[%emt 0:06:35]} 15. Bxc5 {[%emt 0:00:21]} bxc5 {[%emt 0:00:47]} 16. h3 {[%emt 0:01:59]} Bxf3 {[%emt 0:08:40]} 17. Bxf3 {[%emt 0:00:10]} Nd7 {[%emt 0:00:15]} 18. Be2 {[%emt 0:01:23]} a4 {[%emt 0:04:00]} 19. a3 {[%emt 0:02:19]} Nb6 {[%emt 0:02:05]} 20. Bd3 {[%emt 0:00:17]} g5 {[%emt 0:04:49]} (20... h5 $142) 21. Qe2 {[%emt 0:00:22]} Kg7 {[%emt 0:01:42]} 22. Qg4 {[%emt 0:01:45]} Qf6 {[%emt 0:07:12]} 23. Re3 {[%emt 0:02:17]} Rh8 {[%emt 0:05:29]} 24. h4 {[%emt 0:09:44]} Qf4 {[%emt 0:05:00]} 25. Qh3 {[%emt 0:07:32]} Qxh4 {[%emt 0:02:55]} 26. Qxh4 {[%emt 0:00:21]} gxh4 {[%emt 0:00:07]} 27. Kh2 {[%emt 0:00:22]} (27. Rh3 $11 {keeps the balance.}) 27... Nd7 $17 {[%emt 0:01:11] Hoping for ...Rhb8.} 28. Rb1 {[%emt 0:02:05]} Rhb8 {[%emt 0:00:34]} 29. Rb5 {[%emt 0:01:07]} f5 {[%emt 0:08:09]} (29... Nf8 $17) 30. exf5 $11 {[%emt 0:00:46]} Nf6 {[%emt 0:00:13] [#] White must now prevent ...Ng4+.} 31. Kh3 {[%emt 0:00:44] Prevents Ng4. This costs White the game.} ({Wrong is} 31. Rxb8 $2 Rxb8 32. Re1 Rb3 $19) (31. Rh3 $15) 31... Rxb5 $19 {[%emt 0:00:52]} 32. cxb5 {[%emt 0:00:14]} Nxd5 {[%emt 0:00:19]} 33. Be4 $2 {[%emt 0:24:10]} (33. f6+ Kxf6 34. Rf3+ Nf4+ 35. Kxh4) 33... Nxe3 {[%emt 0:03:28]} 34. Bxa8 {[%emt 0:00:05][%mdl 4096] Endgame KB-KN} (34. fxe3 $142 Rf8 35. Kg4) 34... Nc4 {[%emt 0:00:40]} 35. Bc6 {[%emt 0:01:33]} Nxa3 {[%emt 0:00:30] [#] ...Nb1 is the strong threat.} 36. b6 {[%emt 0:00:23]} cxb6 {[%emt 0:00:11][%cal Bc7b6,Bb6b5,Bb5c4][%mdl 32] aiming for ...Nb1.} 37. Bxa4 {[%emt 0:00:10]} b5 {[%emt 0:00:41]} 38. Bd1 {[%emt 0:00:53]} Nb1 {[%emt 0:00:28]} 39. c4 {[%emt 0:00:32]} bxc4 {[%emt 0:00:18]} 40. f4 {[%emt 0:01:06]} c3 {[%emt 0:00:40] Black mates.} 41. fxe5 {[%emt 0:00:28]} dxe5 {[%emt 0:00:11]} 42. Kxh4 {[%emt 0:00:38]} Na3 {[%emt 0:05:09]} 43. g4 {[%emt 0:00:07]} c2 {[%emt 0:00:14]} 44. Bxc2 {[%emt 0:00:02]} Nxc2 {[%emt 0:00:09]} 45. g5 {[%emt 0:00:04]} hxg5+ {[%emt 0:00:13]} 46. Kxg5 {[%emt 0:00:04]} Nd4 {[%emt 0:00:54] Weighted Error Value: White=0.74/Black=0.07 (flawless)} 0-1

[Event "Kvika Banki League Iceland 2022-23"]
[Site "Reykjavik"]
[Date "2022.10.16"]
[Round "5.17"]
[White "Dziuba, Marcin"]
[Black "Cheparinov, Ivan"]
[Result "0-1"]
[ECO "D45"]
[WhiteElo "2569"]
[BlackElo "2689"]
[Annotator "TA"]
[PlyCount "60"]
[EventDate "2022.10.13"]
[EventType "team-tourn"]
[EventCountry "ISL"]
[SourceTitle "playchess.com"]
[Source "ChessBase"]
[SourceQuality "1"]
[TimeControl "5400+30"]

{[%evp 14,60,4,0,0,0,0,0,0,0,0,0,7,8,17,7,0,-4,0,-4,-4,-26,-6,-27,0,-30,-38,-39,-43,-55,-54,-40,-39,-60,-77,-68,-66,-92,-92,-260,-265,-252,-258,-453,-445,-436,-435,-873,-874]} 1. d4 {[%emt 0:00:04]} Nf6 {[%emt 0:00:04]} 2. c4 {[%emt 0:00:03]} e6 {[%emt 0:00:06]} 3. Nf3 {[%emt 0:00:17]} d5 {[%emt 0:00:05]} 4. Nc3 {[%emt 0:00:26]} c6 {[%emt 0:00:12]} 5. e3 {[%emt 0:00:26]} Nbd7 {[%emt 0:00:05]} 6. Be2 {[%emt 0:00:06]} Bd6 {[%emt 0:00:06]} 7. O-O {[%emt 0:00:05]} O-O {[%emt 0:00:04]} 8. b3 {[%emt 0:00:07]} b6 {[%emt 0:00:21] D45: Semi-Slav: 5 e3.} 9. Bb2 {[%emt 0:00:05]} Bb7 {[%emt 0:00:03]} 10. Bd3 {[%emt 0:00:30]} Re8 {[%emt 0:00:23] The position is equal.} 11. Re1 {[%emt 0:00:08]} Rc8 {[%emt 0:01:06]} 12. Rc1 {[%emt 0:00:05]} e5 {[%emt 0:05:04]} 13. dxe5 {[%emt 0:03:06]} (13. Nxe5 {looks sharper.} Nxe5 14. dxe5 Bxe5 15. Bf5) 13... Nxe5 {[%emt 0:00:11]} 14. cxd5 {[%emt 0:10:36]} cxd5 {[%emt 0:03:00][%cal Od5d4] [#]} 15. Nxe5 $146 {[%emt 0:17:59]} ({Predecessor:} 15. Be2 Qe7 16. Nb5 Rxc1 17. Qxc1 Bb8 18. Bxe5 Bxe5 19. Nxa7 Bb8 20. Nc6 Bxc6 21. Qxc6 {1-0 (57) Raja,R (2483)-Finek,V (2408) Budapest 2021}) 15... Bxe5 {[%emt 0:00:23]} 16. Bf5 {[%emt 0:01:35]} Rc5 {[%emt 0:03:03] next ...d4 is good for Black.} 17. f4 {[%emt 0:06:14]} Bd6 {[%emt 0:29:36][%cal Od5d4] [#] Strongly threatening ...d4!} 18. Qd4 {[%emt 0:08:54]} (18. b4 $5 {[%cal Rb4c5]} Rc4 19. a3 $11) 18... h5 {[%emt 0:02:28]} 19. Bd3 {[%emt 0:09:57]} Rc8 {[%emt 0:09:14] ...Bc5 is the strong threat.} 20. b4 {[%emt 0:02:58] Prevents Bc5.} a5 {[%emt 0:03:44]} 21. a3 {[%emt 0:00:34]} axb4 {[%emt 0:00:05]} 22. axb4 {[%emt 0:00:01]} Qe7 {[%emt 0:00:53]} 23. Bb5 {[%emt 0:15:05]} (23. Qxb6 Bxb4 24. Qb5 Ra8 $19) 23... Bxb4 {[%emt 0:09:11] Hoping for ...Bc5.} 24. Bxe8 {[%emt 0:00:05]} (24. Qxb6 $2 Bc5 25. Qxc5 Rxc5 $19) 24... Rxe8 {[%emt 0:00:12]} 25. Qe5 {[%emt 0:13:08]} Qd8 {[%emt 0:12:55]} 26. Qg5 {[%emt 0:00:10] This move loses the game for White.} (26. Qd4 $17 {only move.} Bc5 27. Qd2) 26... d4 $19 {[%emt 0:01:39]} 27. Rcd1 {[%emt 0:08:18][%cal Og5b5]} Qc8 {[%emt 0:00:20]} ({But not} 27... dxc3 $2 28. Rxd8 Rxd8 29. Qb5 $19) 28. exd4 {[%emt 0:01:05]} (28. Nb5 {was worth a try.} Bxe1 29. Rxe1 Rxe3 30. Rxe3 dxe3 31. Nd4) 28... Rxe1+ {[%emt 0:00:20] Black is clearly winning.} ({Avoid the trap} 28... Bxc3 $2 29. Bxc3 Qxc3 30. Rxe8+ Nxe8 31. Qg3 $19) 29. Rxe1 {[%emt 0:00:01]} Bxc3 {[%emt 0:00:12] A strong pair of Bishops.} 30. Rc1 {[%emt 0:00:28] [#]} (30. Bxc3 $142 Qxc3 31. Qg3 Qxd4+ 32. Qe3) 30... Qe8 $1 {[%emt 0:00:48] Weighted Error Value: White=0.58/Black=0.02 (flawless)} 0-1

[Event "Kvika Banki League Iceland 2022-23"]
[Site "Reykjavik"]
[Date "2022.10.16"]
[Round "5.18"]
[White "Jones, Gawain C B"]
[Black "Pakleza, Zbigniew"]
[Result "1/2-1/2"]
[ECO "C41"]
[WhiteElo "2626"]
[BlackElo "2496"]
[Annotator "TA"]
[PlyCount "75"]
[EventDate "2022.10.13"]
[EventType "team-tourn"]
[EventCountry "ISL"]
[SourceTitle "playchess.com"]
[Source "ChessBase"]
[SourceQuality "1"]
[TimeControl "5400+30"]

{[%evp 13,75,19,36,32,47,20,46,0,0,0,3,-4,8,14,6,9,19,-9,-6,-8,0,-7,0,-7,0,-2,0,4,4,0,0,0,0,0,0,0,0,0,0,0,0,0,0,0,0,0,0,0,0,0,0,0,0,-2,0,0,0,-2,0,0,0,-8,0,-12]} 1. e4 {[%emt 0:00:12]} e5 {[%emt 0:00:15]} 2. Nf3 {[%emt 0:00:08]} d6 {[%emt 0:00:04]} 3. d4 {[%emt 0:00:06]} exd4 {[%emt 0:00:02]} 4. Nxd4 {[%emt 0:00:07]} Nf6 {[%emt 0:00:02]} 5. Nc3 {[%emt 0:00:08]} Be7 {[%emt 0:00:03]} 6. Bc4 {[%emt 0:00:20]} O-O {[%emt 0:00:13]} 7. O-O {[%emt 0:00:06]} Re8 {[%emt 0:02:03]} 8. Re1 {[%emt 0:02:19] C41: Philidor Defence.} c6 {[%emt 0:01:01]} 9. h3 {[%emt 0:04:22]} Bf8 {[%emt 0:03:26] [#]} 10. Nf3 $146 {[%emt 0:20:27] White is slightly better.} ({Predecessor:} 10. Bb3 Nbd7 11. Bg5 h6 12. Bh4 Ne5 13. Qd2 Ng6 14. Bg3 Be7 15. Rad1 Nh5 16. Bh2 {1-0 (31) Drozdowski,K (2448)-Ulko,J (2437) Chess.com INT 2021}) 10... Nbd7 {[%emt 0:12:04] Prevents e5. The position is equal.} 11. Bf4 {[%emt 0:04:30]} Nc5 {[%emt 0:09:34]} 12. Ng5 {[%emt 0:02:15]} Ne6 {[%emt 0:05:03]} 13. Qf3 {[%emt 0:04:37]} h6 {[%emt 0:05:59]} 14. Nxe6 {[%emt 0:00:51]} Bxe6 {[%emt 0:00:02]} 15. Bb3 {[%emt 0:12:55]} Bxb3 {[%emt 0:12:39]} 16. axb3 {[%emt 0:00:46]} Re6 {[%emt 0:00:07]} 17. Red1 {[%emt 0:09:23][%cal Oe4e5]} Qe8 {[%emt 0:07:27]} 18. Ra4 {[%emt 0:12:05]} b5 {[%emt 0:05:06]} 19. Rad4 {[%emt 0:00:20][%cal Rf4d6]} c5 {[%emt 0:05:11]} 20. R4d3 {[%emt 0:00:06][%cal Rf4d6]} Nxe4 {[%emt 0:04:00]} 21. Nxe4 {[%emt 0:00:20]} Rxe4 {[%emt 0:00:04]} 22. Bxd6 {[%emt 0:00:13]} c4 {[%emt 0:07:44]} 23. bxc4 {[%emt 0:01:54]} bxc4 {[%emt 0:00:05]} 24. Rd5 {[%emt 0:00:17][%cal Od6e5] [#] Strongly threatening Be5!} Re1+ {[%emt 0:01:09]} 25. Rxe1 {[%emt 0:01:06]} Qxe1+ {[%emt 0:00:03]} 26. Kh2 {[%emt 0:00:03]} Bxd6+ {[%emt 0:00:46]} 27. Rxd6 $11 {[%emt 0:00:02][%mdl 4096] Endgame KQR-KQR} Qe5+ {[%emt 0:00:13]} 28. g3 {[%emt 0:00:18]} Rb8 {[%emt 0:02:43]} 29. Rc6 {[%emt 0:02:56]} Qxb2 {[%emt 0:01:06]} 30. Rxc4 {[%emt 0:01:03]} Qb7 {[%emt 0:02:10]} 31. Kg2 {[%emt 0:00:55]} Qd7 {[%emt 0:03:24]} 32. Kh2 {[%emt 0:04:27]} a5 {[%emt 0:01:57]} 33. Qc3 {[%emt 0:01:47]} Ra8 {[%emt 0:01:57]} 34. Rg4 {[%emt 0:00:30][%csl Gg4][%cal Rc3g7] [#]} g6 {[%emt 0:02:02]} 35. Qc4 {[%emt 0:01:31] Black must now prevent Rxg6+.} Kg7 {[%emt 0:01:07]} 36. Qc3+ {[%emt 0:00:06]} Kg8 {[%emt 0:00:12]} 37. Qc4 {[%emt 0:00:49] And now Rxg6+ would win.} Kg7 {[%emt 0:00:03]} 38. Qc3+ {[%emt 0:04:48] Weighted Error Value: White=0.06 (flawless) /Black=0.02 (flawless)} 1/2-1/2